fUST/lending_fUST_20241018
["ID","MTS","AMOUNT","RATE_DAILY","PERIOD"]
[340400750,1729191299822,-151.0,0.00014618,2]
[340400751,1729191299845,-266.608381,0.00014618,2]
[340400752,1729191299868,-151.0,0.00014618,2]
[340400753,1729191299891,-151.0,0.00014618,2]
[340400754,1729191299918,-151.0,0.00014618,2]
[340400755,1729191299942,-151.0,0.00014618,2]
[340400756,1729191299965,-151.0,0.00014618,2]
[340400757,1729191299991,-151.0,0.00014618,2]
[340400758,1729191300015,-151.0,0.00014618,2]
[340400759,1729191300038,-151.0,0.00014618,2]
[340400760,1729191300062,-288.731338,0.00014618,2]
[340400761,1729191300086,-288.731338,0.00014618,2]
[340400762,1729191300110,-288.731338,0.00014618,2]
[340400763,1729191300135,-288.731338,0.00014618,2]
[340400764,1729191300159,-288.731338,0.00014618,2]
[340400765,1729191300183,-288.731338,0.00014618,2]
[340400766,1729191300207,-288.731338,0.00014618,2]
[340400767,1729191300231,-288.731338,0.00014618,2]
[340400768,1729191300254,-288.731338,0.00014618,2]
[340400769,1729191300277,-288.731338,0.00014618,2]
[340400770,1729191300302,-288.731338,0.00014618,2]
[340400771,1729191300326,-288.731338,0.00014618,2]
[340400772,1729191300350,-288.731338,0.00014618,2]
[340400773,1729191300375,-288.73134,0.00014618,2]
[340400774,1729191300400,-151.0,0.00014618,2]
[340400775,1729191300425,-151.0,0.00014618,2]
[340400776,1729191300448,-221.265147,0.00014618,2]
[340400777,1729191300472,-221.265147,0.00014618,2]
[340400778,1729191300496,-221.265147,0.00014618,2]
[340400779,1729191300522,-221.265147,0.00014618,2]
[340400780,1729191300548,-204.55248798,0.00014618,2]
[340400781,1729191656886,161.355465,0.00013561,2]
[340400782,1729191657718,161.355465,0.000136,2]
[340400783,1729191657807,161.355465,0.00013639,2]
[340400784,1729191657984,161.355465,0.00013678,2]
[340400785,1729191658479,161.355465,0.00013718,2]
[340400786,1729191658554,161.355465,0.00013757,2]
[340400787,1729191658691,161.355465,0.00013796,2]
[340400788,1729191658952,161.355465,0.00013835,2]
[340400789,1729191659338,161.355465,0.00013875,2]
[340400790,1729191659693,161.355465,0.00013914,2]
[340400791,1729191659973,161.355465,0.00013953,2]
[340400792,1729191660189,161.355465,0.00013992,2]
[340400793,1729191716546,250.0,0.00013699,2]
[340400794,1729191767934,222.51228,0.00013699,2]
[340400802,1729192204160,162.857098,0.0001341,2]
[340400803,1729192204403,162.857098,0.00013497,2]
[340400804,1729192204645,162.857098,0.00013585,2]
[340400805,1729192204915,162.857098,0.00013672,2]
[340400806,1729192205176,162.857098,0.0001376,2]
[340400807,1729192205425,162.857098,0.00013847,2]
[340400808,1729192206126,162.857098,0.00013934,2]
[340400809,1729192206559,162.857098,0.00014022,2]
[340400902,1729192243585,-0.01385052,0.00014109,2]
[340400903,1729192245268,-162.84324748,0.00014109,2]
[340400905,1729192245277,-568.32994207,0.00014249,2]
[340400907,1729192245288,-300.0,0.00014373,2]
[340400908,1729192245297,-136.32681044,0.00014373,2]
[340401014,1729192275496,250.0,0.00013699,2]
[340401015,1729192337566,222.51228,0.00013699,2]
[340401017,1729192547403,24900.0,0.00013391,2]
[340401019,1729192724557,168.112813,0.00013464,2]
[340401020,1729192724785,168.112813,0.00013815,2]
[340401021,1729192890980,250.0,0.00013699,2]
[340401022,1729192894635,163.316974,0.00013699,2]
[340401023,1729193054896,24900.0,0.00013344,2]
[340401026,1729193190889,165.905,0.0001332,2]
[340401027,1729193191109,165.905,0.00013324,2]
[340401028,1729193191419,165.905,0.00013329,2]
[340401029,1729193191678,165.905,0.00013333,2]
[340401030,1729193191930,165.905,0.00013338,2]
[340401031,1729193192261,165.905,0.00013342,2]
[340401032,1729193192474,165.905,0.00013346,2]
[340401033,1729193192677,165.905,0.00013351,2]
[340401034,1729193192908,165.905,0.00013355,2]
[340401035,1729193193166,165.905,0.0001336,2]
[340401036,1729193193450,165.905,0.00013364,2]
[340401037,1729193193629,165.905,0.00013369,2]
[340401038,1729193193834,165.905,0.00013373,2]
[340401039,1729193194087,165.905,0.00013377,2]
[340401040,1729193194350,165.905,0.00013382,2]
[340401041,1729193194570,165.905,0.00013386,2]
[340401050,1729193234208,4845.0659184,0.0001342,2]
[340401051,1729193283028,1319.5105774,0.0001332,2]
[340401052,1729193301636,168.112814,0.00013409,2]
[340401054,1729193393487,176.3547387,0.00013303,2]
[340401062,1729193405225,250.0,0.00013699,2]
[340401063,1729193411791,4890.64464836,0.00014019,2]
[340401097,1729193432274,-168.112814,0.00014108,2]
[340401098,1729193432284,-150.0,0.00014167,2]
[340401100,1729193432293,-148.98648599,0.000143,2]
[340401106,1729193432378,-459.41351401,0.000143,2]
[340401108,1729193432387,-300.0,0.00014357,2]
[340401110,1729193432397,-2711.54464221,0.00014357,2]
[340401112,1729193432406,-716.85,0.00014358,2]
[340401114,1729193432415,-639.65109178,0.00014359,2]
[340401115,1729193432425,-8153.59255185,0.00014359,2]
[340401120,1729193437819,163.316974,0.00013699,2]
[340401148,1729193438445,-376.4153791,0.00014359,2]
[340401164,1729193440098,-15260.51076497,0.00014359,2]
[340401165,1729193440108,-7569.80917496,0.00014359,2]
[340401166,1729193440118,-6624.64006007,0.00014359,2]
[340401167,1729193440129,-13269.29717233,0.00014359,2]
[340401168,1729193440138,-73918.2899493,0.00014359,2]
[340401169,1729193440148,-1071.63661581,0.00014362,2]
[340401170,1729193440157,-137232.0277053,0.00014369,2]
[340401171,1729193440166,-500.0,0.00014373,2]
[340401172,1729193440175,-500.0,0.00014373,2]
[340401173,1729193440186,-501.22112129,0.000144,2]
[340401174,1729193440197,-150.112233,0.000144,2]
[340401175,1729193440206,-150.112233,0.000144,2]
[340401176,1729193440215,-150.112233,0.000144,2]
[340401177,1729193440226,-157.250149,0.000144,2]
[340401178,1729193440237,-9946.9686162,0.00014425,2]
[340401179,1729193440248,-150.0,0.00014431,2]
[340401180,1729193440258,-500.0,0.00014434,2]
[340401181,1729193440268,-500.0,0.00014434,2]
[340401182,1729193440280,-500.0,0.00014434,2]
[340401183,1729193440289,-500.0,0.00014434,2]
[340401184,1729193440298,-489.15381261,0.00014434,2]
[340401185,1729193440308,-500.0,0.00014434,2]
[340401186,1729193440318,-500.0,0.00014434,2]
[340401187,1729193440327,-638.39689196,0.00014434,2]
[340401188,1729193440337,-500.0,0.00014434,2]
[340401189,1729193440347,-500.0,0.00014434,2]
[340401190,1729193440359,-500.0,0.00014434,2]
[340401191,1729193440371,-500.0,0.00014434,2]
[340401192,1729193440380,-500.0,0.00014434,2]
[340401193,1729193440390,-500.0,0.00014434,2]
[340401194,1729193440399,-500.0,0.00014434,2]
[340401195,1729193440409,-500.0,0.00014434,2]
[340401196,1729193440418,-500.0,0.00014434,2]
[340401197,1729193440428,-500.0,0.00014434,2]
[340401198,1729193440437,-500.0,0.00014434,2]
[340401199,1729193440447,-500.0,0.00014434,2]
[340401200,1729193440457,-228.459726,0.00014435,2]
[340401201,1729193440467,-228.459726,0.00014435,2]
[340401202,1729193440476,-1880.776488,0.00014435,2]
[340401203,1729193440485,-1880.776488,0.00014435,2]
[340401204,1729193440496,-151.0,0.00014435,2]
[340401205,1729193440507,-1224.582712,0.00014435,2]
[340401206,1729193440517,-1224.582712,0.00014435,2]
[340401207,1729193440528,-238.170096,0.00014435,2]
[340401208,1729193440538,-36959.1449746,0.00014441,2]
[340401209,1729193440547,-258.987,0.00014443,2]
[340401210,1729193440557,-150.715,0.00014443,2]
[340401211,1729193440566,-527.0,0.00014443,2]
[340401212,1729193440576,-180.648,0.0001445,2]
[340401213,1729193440585,-193.41087348,0.0001445,2]
[340401214,1729193440595,-89522.7175458,0.00014452,2]
[340401215,1729193440605,-147836.579899,0.00014452,2]
[340401216,1729193440616,-151.0,0.00014452,2]
[340401217,1729193440625,-220.740095,0.00014452,2]
[340401218,1729193440635,-151.0,0.00014452,2]
[340401219,1729193440644,-151.0,0.00014452,2]
[340401220,1729193440654,-151.0,0.00014452,2]
[340401221,1729193440663,-151.0,0.00014452,2]
[340401222,1729193440673,-151.0,0.00014452,2]
[340401223,1729193440682,-151.0,0.00014452,2]
[340401224,1729193440692,-151.0,0.00014452,2]
[340401225,1729193440704,-151.0,0.00014452,2]
[340401226,1729193440714,-151.0,0.00014452,2]
[340401227,1729193440724,-151.0,0.00014452,2]
[340401228,1729193440733,-341.55080182,0.00014461,2]
[340401229,1729193440743,-500.0,0.00014461,2]
[340401230,1729193440753,-236.66041546,0.00014461,2]
[340401231,1729193440763,-108.34365696,0.00014461,2]
[340401232,1729193440780,-376.44119385,0.00014461,2]
[340401233,1729193440790,-499.79838995,0.00014461,2]
[340401234,1729193440799,-151.0,0.00014462,2]
[340401235,1729193440809,-151.0,0.00014462,2]
[340401236,1729193440818,-151.0,0.00014462,2]
[340401237,1729193440828,-203.880558,0.00014462,2]
[340401238,1729193440837,-203.880558,0.00014462,2]
[340401239,1729193440847,-203.880558,0.00014462,2]
[340401240,1729193440857,-203.880558,0.00014462,2]
[340401241,1729193440867,-298.0,0.00014462,2]
[340401242,1729193440878,-228.459726,0.00014462,2]
[340401243,1729193440889,-228.459726,0.00014462,2]
[340401244,1729193440898,-228.459726,0.00014462,2]
[340401245,1729193440907,-228.459726,0.00014462,2]
[340401246,1729193440917,-1880.776488,0.00014462,2]
[340401247,1729193440927,-963.9227922,0.00014462,2]
[340401276,1729193446136,-170.583488,0.00014452,2]
[340401277,1729193446145,-170.583488,0.00014452,2]
[340401278,1729193446155,-392.7860299,0.00014462,2]
[340401279,1729193446195,-524.0676659,0.00014462,2]
[340401280,1729193446205,-996.6952381,0.00014462,2]
[340401281,1729193617570,3000.0,0.00013457,2]
[340401282,1729193631249,214.63266,0.00013699,2]
[340401283,1729193765815,24900.0,0.00013451,2]
[340401284,1729193837784,166.811282,0.00013539,2]
[340401285,1729193993493,844.210165,0.00013699,2]
[340401286,1729194047437,250.0,0.00013699,2]
[340401288,1729194153644,-470.1664971,0.00014214,2]
[340401289,1729194153683,-166.811282,0.00014245,2]
[340401290,1729194153721,-300.0,0.00014351,2]
[340401291,1729194153759,-300.0,0.00014351,2]
[340401292,1729194153802,-6985.31108668,0.00014352,2]
[340401293,1729194153843,-2093.05185957,0.00014352,2]
[340401294,1729194153882,-827.18047125,0.00014352,2]
[340401295,1729194204911,214.632661,0.00013699,2]
[340401296,1729194225805,-686.98,0.00014358,2]
[340401297,1729194225837,-964.47295422,0.00014362,2]
[340401298,1729194225870,-844.210165,0.00014384,2]
[340401299,1729194225902,-300.0,0.00014434,2]
[340401300,1729194225938,-38511.4424053,0.00014442,2]
[340401301,1729194225972,-8692.89447548,0.00014442,2]
[340401302,1729194263384,-300.0,0.00014441,2]
[340401303,1729194263417,-300.0,0.00014441,2]
[340401304,1729194263451,-35528.16737692,0.00014442,2]
[340401305,1729194263484,-9627.86060133,0.00014442,2]
[340401306,1729194263518,-11055.2654631,0.00014442,2]
[340401307,1729194263553,-500.0,0.00014451,2]
[340401308,1729194263587,-313.41686092,0.00014451,2]
[340401309,1729194263621,-500.0,0.00014451,2]
[340401310,1729194263657,-500.0,0.00014451,2]
[340401311,1729194263691,-588.67657348,0.00014451,2]
[340401312,1729194263726,-500.0,0.00014451,2]
[340401313,1729194263758,-500.0,0.00014451,2]
[340401314,1729194263792,-500.0,0.00014451,2]
[340401315,1729194263824,-550.69483845,0.00014452,2]
[340401316,1729194263857,-8735.9182858,0.00014452,2]
[340401317,1729194304848,24900.0,0.00013452,2]
[340401318,1729194362027,5018.9855071,0.00013427,2]
[340401319,1729194380371,170.818323,0.00013527,2]
[340401320,1729194380629,170.818323,0.00013564,2]
[340401321,1729194380845,170.818323,0.00013601,2]
[340401322,1729194381127,170.818323,0.00013638,2]
[340401323,1729194381567,170.818323,0.00013675,2]
[340401324,1729194381818,170.818323,0.00013712,2]
[340401325,1729194382499,170.818323,0.00013749,2]
[340401326,1729194382625,170.818323,0.00013786,2]
[340401327,1729194382997,170.818323,0.00013824,2]
[340401328,1729194383271,170.818323,0.00013861,2]
[340401329,1729194383494,170.818323,0.00013898,2]
[340401330,1729194383945,170.818323,0.00013935,2]
[340401331,1729194384181,170.818323,0.00013972,2]
[340401332,1729194386194,170.818323,0.00014009,2]
[340401334,1729194392440,3189.98767925,0.00014026,2]
[340401338,1729194482420,1148.6516303,0.00013386,2]
[340401340,1729194579400,1732.6718638,0.0001387,2]
[340401341,1729194581566,2432.234435,0.00013699,2]
[340401342,1729194593842,250.0,0.00013699,2]
[340401354,1729194632268,-170.818323,0.00014046,2]
[340401355,1729194632277,-170.818323,0.00014083,2]
[340401356,1729194632288,-170.818323,0.0001412,2]
[340401357,1729194632298,-170.818323,0.00014157,2]
[340401358,1729194632308,-170.818323,0.00014195,2]
[340401359,1729194632318,-170.818323,0.00014232,2]
[340401360,1729194632327,-1513.80992545,0.00014342,2]
[340401368,1729194638816,-528.06153763,0.00014342,2]
[340401369,1729194638826,-868.02565878,0.00014362,2]
[340401370,1729194638836,-1732.6718638,0.0001437,2]
[340401371,1729194638845,-2432.234435,0.00014384,2]
[340401372,1729194638855,-300.0,0.00014441,2]
[340401373,1729194638864,-300.0,0.00014441,2]
[340401374,1729194638873,-367.1298923,0.00014441,2]
[340401375,1729194638882,-31792.47129855,0.00014442,2]
[340401393,1729194640297,-40277.86140215,0.00014442,2]
[340401395,1729194640309,-24023.4442336,0.00014442,2]
[340401397,1729194640319,-232.07517483,0.00014451,2]
[340401399,1729194640331,-658.35,0.00014451,2]
[340401401,1729194640343,-86325.77502893,0.00014451,2]
[340401403,1729194640353,-135236.80037061,0.00014452,2]
[340401709,1729194702360,443.933377,0.00013699,2]
[340401710,1729194728739,717.14,0.00014,30]
[340401711,1729194752455,231.0,0.000116,2]
[340401712,1729194826027,11387.21557498,0.00013457,2]
[340401713,1729194826052,13512.78442502,0.00013457,2]
[340401714,1729194831389,3202.6638815,0.00013565,2]
[340401715,1729194982577,173.995582,0.0001351,2]
[340401716,1729194982896,173.995582,0.00013745,2]
[340401717,1729194983052,173.995582,0.0001398,2]
[340401718,1729195135142,250.0,0.00013699,2]
[340401719,1729195136955,156.22930146,0.00013984,2]
[340401720,1729195202162,986.249517,0.00013699,2]
[340401721,1729195315414,221.966689,0.00013699,2]
[340401722,1729195385451,24900.0,0.00013396,2]
[340401723,1729195387492,6996.43747079,0.00013999,2]
[340401728,1729195484197,1039.6031184,0.0001387,2]
[340401729,1729195553436,175.473791,0.00013519,2]
[340401730,1729195629455,250.0,0.00013699,2]
[340401747,1729195816530,813.75622,0.00013699,2]
[340401754,1729195832487,-175.473791,0.00014223,2]
[340401755,1729195832498,-300.0,0.00014324,2]
[340401756,1729195832508,-300.0,0.00014324,2]
[340401757,1729195832518,-511.0676374,0.00014325,2]
[340401758,1729195832527,-8170.41705616,0.00014325,2]
[340401759,1729195836936,220.0,0.000116,2]
[340401820,1729195838885,-744.46242417,0.00014225,2]
[340401822,1729195838895,-4273.04148523,0.00014325,2]
[340401897,1729195840446,-21477.03914211,0.00014325,2]
[340401898,1729195840456,-39815.0611512,0.00014325,2]
[340401899,1729195840465,-232.07517483,0.00014334,2]
[340401900,1729195840475,-17842.88902193,0.00014335,2]
[340401901,1729195840485,-5677.35688122,0.00014335,2]
[340401902,1729195840495,-161432.02343668,0.00014335,2]
[340401903,1729195840506,-4870.81795368,0.00014335,2]
[340401904,1729195840518,-10990.96833228,0.00014335,2]
[340401923,1729195846515,-27418.881195,0.00014335,2]
[340401925,1729195893046,24900.0,0.00013394,2]
[340401926,1729195903607,221.9666895,0.00013699,2]
[340401933,1729196076045,176.951998,0.00013432,2]
[340401935,1729196275083,250.0,0.00013699,2]
[340401936,1729196353496,790.099606,0.00013699,2]
[340401937,1729196380298,831.6824946,0.0001387,2]
[340401938,1729196405739,500.0,0.00012972,2]
[340401939,1729196430093,24900.0,0.00013327,2]
[340401945,1729196610693,157.467764,0.00013427,2]
[340401946,1729196610950,157.467764,0.0001366,2]
[340401947,1729196611202,157.467764,0.00013894,2]
[340401948,1729196695397,-157.467764,0.00014127,2]
[340401949,1729196695424,-465.25832485,0.00014179,2]
[340401950,1729196695450,-670.01618169,0.00014225,2]
[340401951,1729196695476,-1000.0,0.00014235,2]
[340401952,1729196695501,-300.0,0.00014324,2]
[340401953,1729196695528,-300.0,0.00014324,2]
[340401954,1729196695554,-6461.65015731,0.00014325,2]
[340401955,1729196695580,-15434.60757215,0.00014325,2]
[340401957,1729196748516,160.364944,0.00012658,2]
[340401967,1729196869346,250.0,0.00013699,2]
[340401969,1729196917991,210.0,0.000116,2]
[340401976,1729196981301,24900.0,0.0001332,2]
[340401977,1729197018951,323.137867,0.00013699,2]
[340401987,1729197032666,-1721.21502006,0.00014042,2]
[340402018,1729197033345,898.183329,0.00013699,2]
[340402022,1729197038829,-2176.35633794,0.00014042,2]
[340402027,1729197040762,-4879.49847751,0.00014042,2]
[340402028,1729197040771,-300.0,0.00014224,2]
[340402029,1729197040781,-300.0,0.00014224,2]
[340402030,1729197040791,-3661.78981553,0.00014225,2]
[340402031,1729197040800,-603.01456353,0.00014225,2]
[340402032,1729197040810,-1074.55160583,0.00014245,2]
[340402033,1729197040820,-18415.7029483,0.00014315,2]
[340402034,1729197040829,-518.2546755,0.00014315,2]
[340402035,1729197040838,-12277.1352989,0.00014325,2]
[340402036,1729197040847,-42969.9735461,0.00014325,2]
[340402037,1729197040858,-232.07517483,0.00014334,2]
[340402038,1729197040868,-658.35,0.00014334,2]
[340402039,1729197040879,-35685.77804387,0.00014335,2]
[340402040,1729197040888,-11354.71376245,0.00014335,2]
[340402041,1729197040898,-18415.7029483,0.00014335,2]
[340402042,1729197040909,-74115.66505616,0.00014335,2]
[340402043,1729197040921,-9782.43370638,0.00014335,2]
[340402044,1729197040932,-1461.00000922,0.00014335,2]
[340402045,1729197040944,-4850.04268495,0.00014335,2]
[340402046,1729197040956,-38814.87793274,0.00014335,2]
[340402047,1729197040966,-6271.3946232,0.00014335,2]
[340402048,1729197040978,-8075.85108579,0.00014335,2]
[340402068,1729197043730,-500.62513503,0.00014335,2]
[340402094,1729197179174,192.312846,0.00013441,2]
[340402095,1729197179498,192.312846,0.00013478,2]
[340402096,1729197179764,192.312846,0.00013515,2]
[340402097,1729197179992,192.312846,0.00013552,2]
[340402098,1729197180223,192.312846,0.00013589,2]
[340402099,1729197180438,192.312846,0.00013626,2]
[340402100,1729197180740,192.312846,0.00013663,2]
[340402101,1729197180994,192.312846,0.000137,2]
[340402102,1729197181416,192.312846,0.00013736,2]
[340402103,1729197181657,192.312846,0.00013773,2]
[340402104,1729197181901,192.312846,0.0001381,2]
[340402105,1729197182157,192.312846,0.00013847,2]
[340402106,1729197182421,192.312846,0.00013884,2]
[340402107,1729197182646,192.312846,0.00013921,2]
[340402108,1729197182884,192.312846,0.00013958,2]
[340402109,1729197183132,192.312846,0.00013995,2]
[340402115,1729197279989,665.3459958,0.0001387,2]
[340402125,1729197546745,14355.2185546,0.00013218,2]
[340402132,1729197558132,250.0,0.00013699,2]
[340402134,1729197619508,161.568933,0.00013699,2]
[340402136,1729197658697,762.038048,0.00013699,2]
[340402146,1729197913979,158.711776,0.00013339,2]
[340402147,1729197914215,158.711776,0.0001338,2]
[340402148,1729197914688,158.711776,0.00013421,2]
[340402149,1729197914934,158.711776,0.00013462,2]
[340402150,1729197915242,158.711776,0.00013503,2]
[340402151,1729197915691,158.711776,0.00013544,2]
[340402152,1729197915922,158.711776,0.00013585,2]
[340402153,1729197916158,158.711776,0.00013625,2]
[340402154,1729197916393,158.711776,0.00013666,2]
[340402155,1729197916630,158.711776,0.00013707,2]
[340402156,1729197916851,158.711776,0.00013748,2]
[340402157,1729197917078,158.711776,0.00013789,2]
[340402158,1729197917296,158.711776,0.0001383,2]
[340402159,1729197917553,158.711776,0.00013871,2]
[340402160,1729197917821,158.711776,0.00013912,2]
[340402161,1729197918077,158.711776,0.00013952,2]
[340402162,1729197918315,158.711776,0.00013993,2]
[340402173,1729198096646,250.0,0.00013699,2]
[340402176,1729198179502,532.2767966,0.0001387,2]
[340402177,1729198185142,161.568934,0.00013699,2]
[340402189,1729198231845,-158.711776,0.00014034,2]
[340402190,1729198231855,-651.25963376,0.00014134,2]
[340402191,1729198231903,-5375.87901696,0.00014134,2]
[340402213,1729198238340,-759.13497419,0.00014134,2]
[340402214,1729198238397,-1612.92829479,0.00014134,2]
[340402215,1729198238406,-300.0,0.00014134,2]
[340402216,1729198238416,-3661.78981553,0.00014135,2]
[340402217,1729198238425,-603.01456353,0.0001419,2]
[340402218,1729198238435,-688.61055464,0.00014202,2]
[340402219,1729198238444,-3359.1564735,0.00014202,2]
[340402241,1729198239820,-56956.93719879,0.00014202,2]
[340402243,1729198239829,-1074.55160583,0.00014235,2]
[340402245,1729198239838,-1166.68477633,0.0001429,2]
[340402247,1729198239847,-36303.47212423,0.000143,2]
[340402249,1729198239857,-150.112242,0.000143,2]
[340402251,1729198239866,-2333.36955266,0.00014305,2]
[340402253,1729198239875,-658.35,0.00014314,2]
[340402255,1729198239884,-1166.68477633,0.00014315,2]
[340402257,1729198239894,-1166.68477633,0.00014315,2]
[340402259,1729198239903,-74115.66505616,0.00014315,2]
[340402261,1729198239913,-5833.42388165,0.00014315,2]
[340402263,1729198239922,-1166.68477633,0.00014325,2]
[340402265,1729198239931,-277.560049,0.00014325,2]
[340402267,1729198239940,-151.0,0.00014325,2]
[340402269,1729198239950,-151.0,0.00014325,2]
[340402271,1729198239959,-151.0,0.00014325,2]
[340402273,1729198239969,-151.0,0.00014325,2]
[340402275,1729198239978,-151.0,0.00014325,2]
[340402277,1729198239990,-151.0,0.00014325,2]
[340402279,1729198239999,-220.740095,0.00014325,2]
[340402281,1729198240009,-286.978469,0.00014325,2]
[340402283,1729198240018,-286.978469,0.00014325,2]
[340402285,1729198240028,-272.579725,0.00014325,2]
[340402287,1729198240037,-286.978469,0.00014325,2]
[340402289,1729198240046,-286.978469,0.00014325,2]
[340402291,1729198240055,-272.579725,0.00014325,2]
[340402293,1729198240064,-338.356818,0.00014325,2]
[340402295,1729198240076,-338.356818,0.00014325,2]
[340402297,1729198240086,-338.356818,0.00014325,2]
[340402300,1729198240096,-338.356818,0.00014325,2]
[340402302,1729198240106,-151.0,0.00014325,2]
[340402304,1729198240116,-151.0,0.00014325,2]
[340402306,1729198240126,-153.879976,0.00014325,2]
[340402308,1729198240137,-287.750536,0.00014325,2]
[340402309,1729198240147,-287.750536,0.00014325,2]
[340402310,1729198240156,-287.750536,0.00014325,2]
[340402311,1729198240166,-287.750536,0.00014325,2]
[340402312,1729198240175,-151.0,0.00014325,2]
[340402313,1729198240185,-151.0,0.00014325,2]
[340402314,1729198240194,-284.476056,0.00014325,2]
[340402315,1729198240203,-284.476056,0.00014325,2]
[340402316,1729198240212,-603.994744,0.00014325,2]
[340402317,1729198240222,-603.994744,0.00014325,2]
[340402318,1729198240231,-284.476056,0.00014325,2]
[340402319,1729198240240,-284.476056,0.00014325,2]
[340402320,1729198240249,-1198.588009,0.00014325,2]
[340402321,1729198240260,-1198.588009,0.00014325,2]
[340402322,1729198240272,-603.994744,0.00014325,2]
[340402323,1729198240282,-603.994744,0.00014325,2]
[340402324,1729198240291,-1198.588009,0.00014325,2]
[340402325,1729198240301,-1198.588009,0.00014325,2]
[340402326,1729198240310,-151.0,0.00014325,2]
[340402327,1729198240319,-151.0,0.00014325,2]
[340402328,1729198240328,-151.0,0.00014325,2]
[340402329,1729198240337,-277.653405,0.00014325,2]
[340402330,1729198240347,-433.214941,0.00014325,2]
[340402331,1729198240356,-433.214941,0.00014325,2]
[340402332,1729198240366,-433.214941,0.00014325,2]
[340402333,1729198240375,-433.214941,0.00014325,2]
[340402334,1729198240384,-1130.760641,0.00014325,2]
[340402335,1729198240394,-1130.760641,0.00014325,2]
[340402336,1729198240403,-1130.760641,0.00014325,2]
[340402337,1729198240413,-1130.760641,0.00014325,2]
[340402338,1729198240422,-1130.760641,0.00014325,2]
[340402339,1729198240433,-151.0,0.00014325,2]
[340402340,1729198240443,-151.0,0.00014325,2]
[340402341,1729198240452,-151.0,0.00014325,2]
[340402342,1729198240462,-1130.760641,0.00014325,2]
[340402343,1729198240471,-151.0,0.00014325,2]
[340402344,1729198240480,-151.0,0.00014325,2]
[340402345,1729198240489,-151.0,0.00014325,2]
[340402346,1729198240499,-10500.162987,0.00014325,2]
[340402347,1729198240508,-150.0,0.00014327,2]
[340402348,1729198240518,-508.77031369,0.00014334,2]
[340402349,1729198240527,-500.0,0.00014334,2]
[340402350,1729198240536,-288.53924657,0.00014334,2]
[340402351,1729198240545,-412.83757754,0.00014334,2]
[340402352,1729198240555,-555.14507487,0.00014334,2]
[340402353,1729198240564,-232.07517483,0.00014334,2]
[340402354,1729198240575,-480.56118516,0.00014335,2]
[340402367,1729198243082,-35205.21685871,0.00014335,2]
[340402368,1729198243092,-11354.71376245,0.00014335,2]
[340402369,1729198243101,-70546.61886624,0.00014335,2]
[340402371,1729198284476,508.025365,0.00013699,2]
[340402376,1729198441068,159.439421,0.00013478,2]
[340402377,1729198441309,159.439421,0.00013712,2]
[340402378,1729198441555,159.439421,0.00013946,2]
[340402390,1729198718278,250.0,0.00013699,2]
[340402391,1729198819536,413.669904,0.00013699,2]
[340402394,1729198905905,18448.9459514,0.00013189,2]
[340402395,1729198935766,159.439421,0.00013288,2]
[340402406,1729199081605,500.0,0.0001387,2]
[340402418,1729199269659,250.0,0.00013699,2]
[340402421,1729199331531,160.2208315,0.00013944,2]
[340402423,1729199350690,275.779936,0.00013699,2]
[340402496,1729199432165,-542.71310724,0.00014044,2]
[340402498,1729199432175,-113.53198152,0.00014099,2]
[340402508,1729199440027,-186.46801848,0.00014099,2]